[Event "GER-ch Youth U12w 2019"]
[Site "Willingen"]
[Date "2019.06.14"]
[Round "8.1"]
[White "Keymer, Cecilia"]
[Black "Zhou, Lepu Coco"]
[Result "0-1"]
[ECO "A49"]
[WhiteElo "1511"]
[BlackElo "1724"]
[Annotator "NA"]
[PlyCount "102"]
[EventDate "2019.06.07"]
[EventType "swiss"]
[EventRounds "9"]
[EventCountry "GER"]
[SourceTitle "playchess.com"]
[Source "ChessBase"]
[SourceQuality "1"]
[TimeControl "40/4500+30:900+30"]

1. d4 {[%emt 0:00:00]} Nf6 {[%emt 0:00:00]} 2. Nf3 {[%emt 0:00:00]} g6 {[%emt 0:00:00]} 3. g3 {[%emt 0:00:00]} Bg7 {[%emt 0:00:00]} 4. Bg2 {[%emt 0:00:00]} O-O {[%emt 0:00:00]} 5. b3 {[%emt 0:00:00]} d6 {[%emt 0:00:00]} 6. Bb2 {[%emt 0:00:00]} Nbd7 {[%emt 0:00:00]} 7. O-O {[%emt 0:00:00]} c5 {[%emt 0:00:00]} 8. c4 {[%emt 0:00:00]} cxd4 {[%emt 0:00:00]} 9. Nxd4 {[%emt 0:00:00]} Rb8 {[%emt 0:00:00]} 10. Nc3 {[%emt 0:00:00]} a6 {[%emt 0:00:00]} 11. e3 {[%emt 0:01:49]} Qc7 {[%emt 0:01:08]} 12. Qe2 {[%emt 0:03:09]} Nc5 {[%emt 0:03:35]} 13. h3 {[%emt 0:05:30]} Bd7 {[%emt 0:05:09]} 14. Rac1 {[%emt 0:04:33]} e5 {[%emt 0:06:01]} 15. Nc2 {[%emt 0:06:06]} Bc6 {[%emt 0:00:16]} 16. Nb4 {[%emt 0:05:20]} Bxg2 {[%emt 0:02:52]} 17. Kxg2 {[%emt 0:00:42]} Nce4 {[%emt 0:04:30]} 18. Ncd5 {[%emt 0:05:53]} Qd7 {[%emt 0:00:49]} 19. Nxf6+ {[%emt 0:06:31]} Nxf6 {[%emt 0:00:10]} 20. Rfd1 {[%emt 0:01:24]} a5 {[%emt 0:04:48]} 21. Nd5 {[%emt 0:03:45]} Nxd5 {[%emt 0:00:25]} 22. Rxd5 {[%emt 0:03:02]} Qc6 {[%emt 0:01:15]} 23. Kh2 {[%emt 0:05:27]} Rfd8 {[%emt 0:03:26]} 24. Rcd1 {[%emt 0:02:59]} a4 {[%emt 0:05:46]} 25. c5 {[%emt 0:04:46]} axb3 {[%emt 0:01:55]} 26. axb3 {[%emt 0:01:18]} f6 {[%emt 0:02:31]} 27. cxd6 {[%emt 0:08:41]} Rd7 {[%emt 0:01:11]} 28. Qc4 {[%emt 0:03:13]} Qxc4 {[%emt 0:01:48]} 29. bxc4 {[%emt 0:00:11]} b6 {[%emt 0:00:09]} 30. Kg2 {[%emt 0:04:04]} Bf8 {[%emt 0:00:24]} 31. Ba3 {[%emt 0:01:25]} Rc8 {[%emt 0:00:13]} 32. c5 {[%emt 0:01:34]} bxc5 {[%emt 0:00:11]} 33. Bxc5 {[%emt 0:01:37]} Kf7 {[%emt 0:00:33]} 34. Kf3 {[%emt 0:01:29]} Ke6 {[%emt 0:02:26]} 35. g4 {[%emt 0:02:29]} Rcd8 {[%emt 0:00:55]} 36. Bb6 {[%emt 0:01:19]} Ra8 {[%emt 0:01:29]} 37. Bc7 {[%emt 0:01:03]} Ra4 {[%emt 0:01:30]} 38. Kg3 {[%emt 0:01:19]} Ra3 {[%emt 0:02:35]} 39. Kg2 {[%emt 0:01:46]} Ra6 {[%emt 0:03:02]} 40. Kf3 {[%emt 0:01:11]} Bxd6 {[%emt 0:01:19]} 41. Bxd6 {[%emt 0:00:00]} Raxd6 {[%emt 0:00:00]} 42. Rxd6+ {[%emt 0:00:00]} Rxd6 {[%emt 0:00:00]} 43. Rxd6+ {[%emt 0:00:00]} Kxd6 {[%emt 0:00:00]} 44. Ke4 {[%emt 0:00:00]} Ke6 {[%emt 0:00:00]} 45. f4 {[%emt 0:01:35]} f5+ {[%emt 0:00:00]} 46. gxf5+ {[%emt 0:02:13]} gxf5+ {[%emt 0:00:00]} 47. Kf3 {[%emt 0:03:27]} e4+ {[%emt 0:00:00]} 48. Kg3 {[%emt 0:01:15]} Kd5 {[%emt 0:00:00]} 49. Kh4 {[%emt 0:00:36]} Kc4 {[%emt 0:00:00]} 50. Kg5 {[%emt 0:00:21]} Kd3 {[%emt 0:00:00]} 51. Kxf5 {[%emt 0:00:16]} Kxe3 {[%emt 0:00:00] normal} 0-1

[Event "GER-ch Youth U12w 2019"]
[Site "Willingen"]
[Date "2019.06.14"]
[Round "8.2"]
[White "Braeutigam, Katerina"]
[Black "Roncea, Andrea-Alexandra"]
[Result "0-1"]
[ECO "C88"]
[WhiteElo "1697"]
[BlackElo "1558"]
[Annotator "NA"]
[PlyCount "154"]
[EventDate "2019.06.07"]
[EventType "swiss"]
[EventRounds "9"]
[EventCountry "GER"]
[SourceTitle "playchess.com"]
[Source "ChessBase"]
[SourceQuality "1"]
[TimeControl "40/4500+30:900+30"]

1. e4 {[%emt 0:00:00]} e5 {[%emt 0:00:00]} 2. Nf3 {[%emt 0:00:00]} Nc6 {[%emt 0:00:00]} 3. Bb5 {[%emt 0:00:00]} a6 {[%emt 0:00:00]} 4. Ba4 {[%emt 0:00:00]} b5 {[%emt 0:00:00]} 5. Bb3 {[%emt 0:00:00]} Bb7 {[%emt 0:00:00]} 6. O-O {[%emt 0:00:00]} Be7 {[%emt 0:00:00]} 7. Re1 {[%emt 0:00:00]} Nf6 {[%emt 0:00:00]} 8. c3 {[%emt 0:00:00]} O-O {[%emt 0:00:00]} 9. d4 {[%emt 0:00:00]} d6 {[%emt 0:00:00]} 10. Nbd2 {[%emt 0:00:00]} h6 {[%emt 0:00:00]} 11. Nf1 {[%emt 0:00:00]} Re8 {[%emt 0:00:00]} 12. Ng3 {[%emt 0:00:00]} Bf8 {[%emt 0:00:00]} 13. Bd2 {[%emt 0:00:00]} Na5 {[%emt 0:00:00]} 14. Bc2 {[%emt 0:00:00]} Nc4 {[%emt 0:00:00]} 15. b3 {[%emt 0:03:13]} Nb6 {[%emt 0:00:00]} 16. Rc1 {[%emt 0:01:56]} c5 {[%emt 0:00:00]} 17. h3 {[%emt 0:06:59]} a5 {[%emt 0:00:50]} 18. Bd3 {[%emt 0:06:08]} b4 {[%emt 0:07:45]} 19. Bb5 {[%emt 0:02:29]} Nbd7 {[%emt 0:05:23]} 20. dxe5 {[%emt 0:14:36]} dxe5 {[%emt 0:01:09]} 21. Qe2 {[%emt 0:03:49]} Qb6 {[%emt 0:05:45]} 22. Red1 {[%emt 0:05:33]} Ba6 {[%emt 0:02:12]} 23. Bd3 {[%emt 0:17:10]} Bxd3 {[%emt 0:02:18]} 24. Qxd3 {[%emt 0:00:11]} a4 {[%emt 0:04:54]} 25. cxb4 {[%emt 0:06:07]} cxb4 {[%emt 0:00:53]} 26. Rc4 {[%emt 0:02:54]} axb3 {[%emt 0:07:37]} 27. axb3 {[%emt 0:00:37]} Ra3 {[%emt 0:03:27]} 28. Rdc1 {[%emt 0:02:45]} Nc5 {[%emt 0:05:51]} 29. Qc2 {[%emt 0:08:27]} Nxb3 {[%emt 0:01:53]} 30. Be3 {[%emt 0:00:46]} Qb5 {[%emt 0:01:27]} 31. Rb1 {[%emt 0:02:04]} Na5 {[%emt 0:00:52]} 32. Rc7 {[%emt 0:01:00]} b3 {[%emt 0:02:56]} 33. Qd1 {[%emt 0:03:12]} Nc4 {[%emt 0:04:06]} 34. Bc1 {[%emt 0:00:57]} b2 {[%emt 0:00:29]} 35. Bxb2 {[%emt 0:00:32]} Nxb2 {[%emt 0:00:27]} 36. Qc1 {[%emt 0:00:39]} Rb3 {[%emt 0:02:01]} 37. Nd2 {[%emt 0:00:36]} Rb4 {[%emt 0:00:51]} 38. Rc2 {[%emt 0:00:40]} Nd3 {[%emt 0:01:07]} 39. Qf1 {[%emt 0:00:22]} Rxb1 {[%emt 0:00:43]} 40. Nxb1 {[%emt 0:00:05]} Rb8 {[%emt 0:00:28]} 41. Nc3 {[%emt 0:16:04]} Qa6 {[%emt 0:17:00]} 42. Qd1 {[%emt 0:00:00]} Nf4 {[%emt 0:00:00]} 43. Rd2 {[%emt 0:00:00]} Qc4 {[%emt 0:00:00]} 44. Rc2 {[%emt 0:00:00]} Qd3 {[%emt 0:00:00]} 45. Qxd3 {[%emt 0:00:00]} Nxd3 {[%emt 0:00:00]} 46. Rd2 {[%emt 0:00:00]} Nf4 {[%emt 0:00:00]} 47. Kh2 {[%emt 0:00:00]} Rb3 {[%emt 0:00:00]} 48. Nd1 {[%emt 0:00:00]} Rd3 {[%emt 0:00:00]} 49. Rxd3 {[%emt 0:00:00]} Nxd3 {[%emt 0:00:00]} 50. Kg1 {[%emt 0:00:00]} Bc5 {[%emt 0:00:00]} 51. Kf1 {[%emt 0:00:00]} Bd4 {[%emt 0:00:00]} 52. Ke2 {[%emt 0:00:00]} Nb2 {[%emt 0:00:00]} 53. Ne3 {[%emt 0:00:00]} Bxe3 {[%emt 0:00:00]} 54. Kxe3 {[%emt 0:00:00]} Nc4+ {[%emt 0:00:00]} 55. Ke2 {[%emt 0:00:11]} Nd6 {[%emt 0:00:00]} 56. Ke3 {[%emt 0:01:02]} Kf8 {[%emt 0:00:00]} 57. Kd3 {[%emt 0:00:45]} Ke7 {[%emt 0:00:00]} 58. Ke3 {[%emt 0:00:17]} Kd7 {[%emt 0:00:00]} 59. Kd3 {[%emt 0:00:16]} Kc6 {[%emt 0:00:00]} 60. Ke3 {[%emt 0:00:13]} Kc5 {[%emt 0:00:00]} 61. Kd3 {[%emt 0:00:24]} g6 {[%emt 0:00:00]} 62. Ke3 {[%emt 0:00:49]} Kc4 {[%emt 0:00:00]} 63. f3 {[%emt 0:00:15]} Kc3 {[%emt 0:00:00]} 64. Ne2+ {[%emt 0:00:09]} Kc2 {[%emt 0:00:00]} 65. Ng3 {[%emt 0:00:09]} Nc4+ {[%emt 0:00:00]} 66. Ke2 {[%emt 0:00:32]} Kc3 {[%emt 0:00:00]} 67. Kf2 {[%emt 0:00:35]} Kd3 {[%emt 0:00:00]} 68. Ke1 {[%emt 0:04:24]} Nh5 {[%emt 0:01:25]} 69. Nh1 {[%emt 0:01:10]} Nf4 {[%emt 0:01:07]} 70. Kf2 {[%emt 0:00:20]} Ne3 {[%emt 0:00:28]} 71. Ng3 {[%emt 0:01:28]} Nfxg2 {[%emt 0:01:11]} 72. Ne2 {[%emt 0:00:21]} Nd1+ {[%emt 0:01:14]} 73. Kf1 {[%emt 0:00:28]} Nf4 {[%emt 0:01:41]} 74. Ng1 {[%emt 0:00:44]} Ke3 {[%emt 0:00:20]} 75. h4 {[%emt 0:00:20]} Nf2 {[%emt 0:00:34]} 76. Ke1 {[%emt 0:00:15]} Ng2+ {[%emt 0:00:28]} 77. Kf1 {[%emt 0:00:16]} Nxh4 {[%emt 0:00:14] normal} 0-1

[Event "GER-ch Youth U12w 2019"]
[Site "Willingen"]
[Date "2019.06.14"]
[Round "8.3"]
[White "Pohle, Saskia"]
[Black "Sereda, Yaroslava"]
[Result "0-1"]
[ECO "B34"]
[WhiteElo "1819"]
[BlackElo "1626"]
[Annotator "NA"]
[PlyCount "119"]
[EventDate "2019.06.07"]
[EventType "swiss"]
[EventRounds "9"]
[EventCountry "GER"]
[SourceTitle "playchess.com"]
[Source "ChessBase"]
[SourceQuality "1"]
[TimeControl "40/4500+30:900+30"]

1. e4 {[%emt 0:00:00]} c5 {[%emt 0:00:00]} 2. Nf3 {[%emt 0:00:00]} Nc6 {[%emt 0:00:00]} 3. d4 {[%emt 0:00:00]} cxd4 {[%emt 0:00:00]} 4. Nxd4 {[%emt 0:00:00]} g6 {[%emt 0:00:00]} 5. Nxc6 {[%emt 0:00:00]} bxc6 {[%emt 0:00:00]} 6. Qd4 {[%emt 0:00:00]} Nf6 {[%emt 0:00:00]} 7. e5 {[%emt 0:00:00]} Nd5 {[%emt 0:04:34]} 8. Nc3 {[%emt 0:00:00]} Nxc3 {[%emt 0:01:14]} 9. e6 {[%emt 0:00:00]} f6 {[%emt 0:11:02]} 10. exd7+ {[%emt 0:00:00]} Bxd7 {[%emt 0:00:27]} 11. Qxc3 {[%emt 0:00:00]} Qc8 {[%emt 0:07:33]} 12. Bc4 {[%emt 0:00:00]} Be6 {[%emt 0:07:37]} 13. Bf4 {[%emt 0:00:00]} Bxc4 {[%emt 0:04:06]} 14. Qxc4 {[%emt 0:00:00]} Qb7 {[%emt 0:22:48]} 15. O-O-O {[%emt 0:00:00]} e5 {[%emt 0:05:17]} 16. Qe6+ {[%emt 0:00:00]} Be7 {[%emt 0:00:22]} 17. Bh6 {[%emt 0:00:00]} Qc8 {[%emt 0:00:43]} 18. Qc4 {[%emt 0:00:00]} Bf8 {[%emt 0:01:11]} 19. Bxf8 {[%emt 0:01:03]} Rxf8 {[%emt 0:01:09]} 20. Rd6 {[%emt 0:02:02]} Rf7 {[%emt 0:05:03]} 21. Rxc6 {[%emt 0:01:24]} Qf5 {[%emt 0:01:18]} 22. Re6+ {[%emt 0:02:22]} Kf8 {[%emt 0:01:24]} 23. Rd1 {[%emt 0:06:20]} Qxf2 {[%emt 0:04:01]} 24. Qc6 {[%emt 0:00:35]} Qf4+ {[%emt 0:05:31]} 25. Kb1 {[%emt 0:00:08]} Qg4 {[%emt 0:01:08]} 26. Qxa8+ {[%emt 0:00:08]} Kg7 {[%emt 0:00:05]} 27. Qf3 {[%emt 0:00:17]} Qxe6 {[%emt 0:00:11]} 28. c4 {[%emt 0:01:07]} Qxc4 {[%emt 0:00:58]} 29. Qd5 {[%emt 0:00:25]} Qxd5 {[%emt 0:00:23]} 30. Rxd5 {[%emt 0:00:05]} Rc7 {[%emt 0:00:18]} 31. b4 {[%emt 0:00:52]} Rb7 {[%emt 0:00:26]} 32. a3 {[%emt 0:02:41]} Kf7 {[%emt 0:00:15]} 33. Kc2 {[%emt 0:00:26]} Ke6 {[%emt 0:00:17]} 34. Rc5 {[%emt 0:01:00]} f5 {[%emt 0:00:43]} 35. Kd3 {[%emt 0:00:17]} Kd6 {[%emt 0:01:06]} 36. h3 {[%emt 0:03:36]} a6 {[%emt 0:00:59]} 37. Ra5 {[%emt 0:02:11]} Rb6 {[%emt 0:00:22]} 38. Ke3 {[%emt 0:01:01]} Rc6 {[%emt 0:00:39]} 39. Kd3 {[%emt 0:00:25]} Ke6 {[%emt 0:00:30]} 40. b5 {[%emt 0:02:08]} axb5 {[%emt 0:00:19]} 41. Rxb5 {[%emt 0:15:06]} Ra6 {[%emt 0:00:00]} 42. Rb3 {[%emt 0:00:00]} Ra4 {[%emt 0:00:00]} 43. Rb6+ {[%emt 0:00:00]} Kf7 {[%emt 0:00:00]} 44. Rb7+ {[%emt 0:00:00]} Kg8 {[%emt 0:00:00]} 45. Rb8+ {[%emt 0:00:00]} Kg7 {[%emt 0:00:00]} 46. Rb3 {[%emt 0:00:00]} e4+ {[%emt 0:00:00]} 47. Ke3 {[%emt 0:00:00]} g5 {[%emt 0:05:55]} 48. g3 {[%emt 0:00:00]} h6 {[%emt 0:03:48]} 49. Rc3 {[%emt 0:00:00]} Kf7 {[%emt 0:01:47]} 50. Rb3 {[%emt 0:00:00]} Ke7 {[%emt 0:00:51]} 51. Rb7+ {[%emt 0:00:00]} Kd8 {[%emt 0:00:26]} 52. Rb3 {[%emt 0:00:00]} Kc7 {[%emt 0:00:17]} 53. Rc3+ {[%emt 0:00:00]} Kd6 {[%emt 0:00:16]} 54. Rb3 {[%emt 0:00:00]} Kc5 {[%emt 0:00:33]} 55. Rc3+ {[%emt 0:00:00]} Kd5 {[%emt 0:00:22]} 56. h4 {[%emt 0:00:00]} Ra5 {[%emt 0:01:29]} 57. h5 {[%emt 0:00:00]} Ke5 {[%emt 0:04:52]} 58. Rb3 {[%emt 0:00:00]} f4+ {[%emt 0:00:33]} 59. gxf4+ {[%emt 0:00:00]} gxf4+ {[%emt 0:00:05]} 60. Ke2 {[%emt 0:00:00] normal} 0-1

[Event "GER-ch Youth U12w 2019"]
[Site "Willingen"]
[Date "2019.06.14"]
[Round "8.4"]
[White "Peglau, Charis"]
[Black "Ding, Tina"]
[Result "1/2-1/2"]
[ECO "B38"]
[WhiteElo "1514"]
[BlackElo "1180"]
[Annotator "NA"]
[PlyCount "71"]
[EventDate "2019.06.07"]
[EventType "swiss"]
[EventRounds "9"]
[EventCountry "GER"]
[SourceTitle "playchess.com"]
[Source "ChessBase"]
[SourceQuality "1"]
[TimeControl "40/4500+30:900+30"]

1. e4 {[%emt 0:00:00]} c5 {[%emt 0:00:00]} 2. Nf3 {[%emt 0:00:00]} Nc6 {[%emt 0:00:00]} 3. d4 {[%emt 0:00:00]} cxd4 {[%emt 0:00:00]} 4. Nxd4 {[%emt 0:00:00]} g6 {[%emt 0:00:00]} 5. c4 {[%emt 0:00:00]} Bg7 {[%emt 0:00:00]} 6. Be3 {[%emt 0:00:00]} e6 {[%emt 0:00:00]} 7. Nc3 {[%emt 0:00:00]} Nge7 {[%emt 0:00:00]} 8. Qd2 {[%emt 0:00:00]} O-O {[%emt 0:00:00]} 9. Be2 {[%emt 0:00:00]} Re8 {[%emt 0:00:00]} 10. O-O {[%emt 0:00:00]} d5 {[%emt 0:00:00]} 11. Nxc6 {[%emt 0:00:00]} bxc6 {[%emt 0:00:00]} 12. Rfd1 {[%emt 0:00:00]} Bb7 {[%emt 0:00:00]} 13. cxd5 {[%emt 0:00:00]} cxd5 {[%emt 0:00:00]} 14. Bb5 {[%emt 0:00:00]} Rf8 {[%emt 0:03:42]} 15. exd5 {[%emt 0:00:00]} Nxd5 {[%emt 0:02:41]} 16. Nxd5 {[%emt 0:00:00]} Bxd5 {[%emt 0:01:44]} 17. Bc5 {[%emt 0:00:00]} Rb8 {[%emt 0:05:03]} 18. Bxf8 {[%emt 0:01:28]} Qxf8 19. a4 {[%emt 0:03:52]} Qd8 {[%emt 0:09:43]} 20. Rab1 {[%emt 0:03:24]} Qh4 {[%emt 0:05:18]} 21. Qe3 {[%emt 0:02:29]} Rb6 {[%emt 0:02:51]} 22. b4 {[%emt 0:06:34]} h5 {[%emt 0:03:48]} 23. Qg3 {[%emt 0:02:06]} Qe7 {[%emt 0:01:52]} 24. Rdc1 {[%emt 0:08:47]} a6 {[%emt 0:01:25]} 25. Rc7 {[%emt 0:06:58]} Qf8 {[%emt 0:01:27]} 26. Bd7 {[%emt 0:04:58]} Rxb4 {[%emt 0:02:24]} 27. Rbc1 {[%emt 0:01:07]} Kh7 {[%emt 0:00:55]} 28. h3 {[%emt 0:02:54]} Re4 {[%emt 0:02:49]} 29. Qd3 {[%emt 0:04:12]} Be5 {[%emt 0:02:31]} 30. R7c2 {[%emt 0:09:43]} Rd4 {[%emt 0:02:27]} 31. Qxa6 {[%emt 0:02:00]} Qb4 {[%emt 0:02:19]} 32. Qb5 {[%emt 0:02:35]} Qa3 {[%emt 0:01:45]} 33. Qc5 {[%emt 0:02:24]} Qd3 {[%emt 0:02:13]} 34. Bb5 {[%emt 0:01:09]} Qe4 {[%emt 0:02:18]} 35. f3 {[%emt 0:07:45]} Qe3+ {[%emt 0:02:59]} 36. Kf1 {[%emt 0:01:30] normal} 1/2-1/2

[Event "GER-ch Youth U12w 2019"]
[Site "Willingen"]
[Date "2019.06.14"]
[Round "8.5"]
[White "Fischer, Darja"]
[Black "Adelmeyer, Nelly"]
[Result "1/2-1/2"]
[ECO "B33"]
[WhiteElo "1480"]
[BlackElo "1420"]
[Annotator "NA"]
[PlyCount "61"]
[EventDate "2019.06.07"]
[EventType "swiss"]
[EventRounds "9"]
[EventCountry "GER"]
[SourceTitle "playchess.com"]
[Source "ChessBase"]
[SourceQuality "1"]
[TimeControl "40/4500+30:900+30"]

1. e4 {[%emt 0:00:00]} c5 {[%emt 0:00:00]} 2. Nf3 {[%emt 0:00:00]} Nc6 {[%emt 0:00:00]} 3. d4 {[%emt 0:00:00]} cxd4 {[%emt 0:00:00]} 4. Nxd4 {[%emt 0:00:00]} Nf6 {[%emt 0:00:00]} 5. Nc3 {[%emt 0:00:00]} Qb6 {[%emt 0:00:00]} 6. Nb3 {[%emt 0:00:00]} e6 {[%emt 0:00:00]} 7. a3 {[%emt 0:00:00]} Be7 {[%emt 0:00:00]} 8. Be2 {[%emt 0:00:00]} O-O {[%emt 0:00:00]} 9. O-O {[%emt 0:00:00]} Rd8 {[%emt 0:00:00]} 10. Be3 {[%emt 0:00:00]} Qc7 {[%emt 0:00:00]} 11. f4 {[%emt 0:00:00]} d5 {[%emt 0:01:37]} 12. e5 {[%emt 0:00:19]} Nd7 {[%emt 0:02:58]} 13. Qe1 {[%emt 0:01:23]} f6 {[%emt 0:02:46]} 14. exf6 {[%emt 0:01:51]} Nxf6 {[%emt 0:00:12]} 15. Rd1 {[%emt 0:00:47]} a6 {[%emt 0:12:48]} 16. Qg3 {[%emt 0:05:51]} Na5 {[%emt 0:01:48]} 17. Nxa5 {[%emt 0:02:59]} Qxa5 {[%emt 0:00:12]} 18. Bd4 {[%emt 0:01:14]} Bc5 {[%emt 0:01:30]} 19. Kh1 {[%emt 0:01:52]} Bxd4 {[%emt 0:00:53]} 20. Rxd4 {[%emt 0:00:05]} Qc5 {[%emt 0:01:37]} 21. Qe3 {[%emt 0:03:43]} b5 {[%emt 0:05:21]} 22. Rf3 {[%emt 0:09:02]} Ng4 {[%emt 0:06:31]} 23. Qd3 {[%emt 0:05:19]} Bb7 {[%emt 0:03:58]} 24. Qd2 {[%emt 0:04:54]} Rac8 {[%emt 0:05:36]} 25. Kg1 {[%emt 0:08:37]} e5 {[%emt 0:03:03]} 26. fxe5 {[%emt 0:02:17]} Nxe5 {[%emt 0:00:38]} 27. Rf2 {[%emt 0:00:54]} Rf8 {[%emt 0:01:54]} 28. Rxf8+ {[%emt 0:04:15]} Rxf8 {[%emt 0:00:07]} 29. Kh1 {[%emt 0:02:14]} Nc4 {[%emt 0:08:16]} 30. Bxc4 {[%emt 0:02:46]} dxc4 {[%emt 0:00:43] normal} 31. Rf4 {[%emt 0:04:37] normal} 1/2-1/2

[Event "GER-ch Youth U12w 2019"]
[Site "Willingen"]
[Date "2019.06.14"]
[Round "8.6"]
[White "Wilmink, Anna"]
[Black "Trunz, Michelle"]
[Result "1/2-1/2"]
[ECO "B52"]
[WhiteElo "1466"]
[BlackElo "1505"]
[Annotator "NA"]
[PlyCount "118"]
[EventDate "2019.06.07"]
[EventType "swiss"]
[EventRounds "9"]
[EventCountry "GER"]
[SourceTitle "playchess.com"]
[Source "ChessBase"]
[SourceQuality "1"]
[TimeControl "40/4500+30:900+30"]

1. e4 {[%emt 0:00:00]} c5 {[%emt 0:00:00]} 2. Nf3 {[%emt 0:00:00]} d6 {[%emt 0:00:00]} 3. Bb5+ {[%emt 0:00:00]} Bd7 {[%emt 0:00:00]} 4. Bxd7+ {[%emt 0:00:00]} Qxd7 {[%emt 0:00:00]} 5. O-O {[%emt 0:00:00]} Nc6 {[%emt 0:00:00]} 6. c3 {[%emt 0:00:00]} Nf6 {[%emt 0:00:00]} 7. Re1 {[%emt 0:00:00]} e6 {[%emt 0:00:00]} 8. d4 {[%emt 0:00:00]} d5 {[%emt 0:00:00]} 9. e5 {[%emt 0:00:00]} Ne4 {[%emt 0:00:00]} 10. Nbd2 {[%emt 0:00:00]} Nxd2 {[%emt 0:00:00]} 11. Bxd2 {[%emt 0:00:00]} b6 {[%emt 0:00:00]} 12. Be3 {[%emt 0:00:43]} Be7 {[%emt 0:00:00]} 13. Bg5 {[%emt 0:05:09]} O-O {[%emt 0:00:00]} 14. Bxe7 {[%emt 0:03:31]} Nxe7 {[%emt 0:00:00]} 15. Nh4 {[%emt 0:07:18]} Rac8 {[%emt 0:00:38]} 16. Rc1 {[%emt 0:02:47]} Rc7 {[%emt 0:00:34]} 17. Nf3 {[%emt 0:04:45]} Nf5 {[%emt 0:00:37]} 18. Re2 {[%emt 0:01:39]} Qe7 {[%emt 0:00:24]} 19. a3 {[%emt 0:02:40]} Rfc8 {[%emt 0:00:08]} 20. Rec2 {[%emt 0:00:43]} Qd7 {[%emt 0:01:08]} 21. h3 {[%emt 0:04:17]} Qa4 {[%emt 0:00:35]} 22. Ne1 {[%emt 0:04:03]} Rc6 {[%emt 0:04:20]} 23. Rd2 {[%emt 0:03:36]} Qxd1 {[%emt 0:00:30]} 24. Rcxd1 {[%emt 0:00:41]} cxd4 {[%emt 0:00:18]} 25. cxd4 {[%emt 0:00:33]} Rc1 {[%emt 0:01:31]} 26. Rxc1 {[%emt 0:00:49]} Rxc1 {[%emt 0:00:09]} 27. Kf1 {[%emt 0:00:15]} Nh4 {[%emt 0:01:33]} 28. Rc2 {[%emt 0:02:49]} Rxc2 {[%emt 0:01:05]} 29. Nxc2 {[%emt 0:00:42]} Kf8 {[%emt 0:00:22]} 30. Ne3 {[%emt 0:02:24]} Ke7 {[%emt 0:00:32]} 31. Ke2 {[%emt 0:00:24]} Ng6 {[%emt 0:00:25]} 32. g3 {[%emt 0:01:19]} f6 {[%emt 0:01:16]} 33. f4 {[%emt 0:00:43]} h5 {[%emt 0:00:46]} 34. h4 {[%emt 0:01:20]} Nf8 {[%emt 0:01:09]} 35. Kf3 {[%emt 0:04:58]} a6 {[%emt 0:02:35]} 36. a4 {[%emt 0:01:26]} Nd7 {[%emt 0:00:28]} 37. Nd1 {[%emt 0:03:19]} Nb8 {[%emt 0:00:32]} 38. Nc3 {[%emt 0:02:16]} Nc6 {[%emt 0:01:59]} 39. Ke3 {[%emt 0:04:08]} Na5 {[%emt 0:01:08]} 40. b4 {[%emt 0:04:02]} Nc4+ {[%emt 0:00:40]} 41. Ke2 {[%emt 0:15:50]} Kf7 {[%emt 0:15:57]} 42. b5 {[%emt 0:02:31]} a5 {[%emt 0:00:28]} 43. Kf3 {[%emt 0:01:15]} Kg6 {[%emt 0:04:49]} 44. g4 {[%emt 0:02:52]} hxg4+ {[%emt 0:00:57]} 45. Kxg4 {[%emt 0:00:25]} Ne3+ {[%emt 0:00:28]} 46. Kf3 {[%emt 0:00:36]} Nf5 {[%emt 0:00:11]} 47. Ne2 {[%emt 0:01:26]} Nxh4+ {[%emt 0:00:15]} 48. Kg4 {[%emt 0:01:28]} Ng2 {[%emt 0:01:19]} 49. f5+ {[%emt 0:10:20]} exf5+ {[%emt 0:16:27]} 50. Kg3 {[%emt 0:00:18]} Ne3 {[%emt 0:06:38]} 51. e6 {[%emt 0:00:45]} Nc4 {[%emt 0:10:54]} 52. Nf4+ {[%emt 0:00:00]} Kh7 {[%emt 0:00:00]} 53. Nxd5 {[%emt 0:00:00]} Kg8 {[%emt 0:00:00]} 54. Kf4 {[%emt 0:00:00]} Nd6 {[%emt 0:00:00]} 55. Nxb6 {[%emt 0:00:00]} g5+ {[%emt 0:00:00]} 56. Kf3 {[%emt 0:00:00]} Kf8 {[%emt 0:00:00]} 57. Nd7+ {[%emt 0:00:00]} Ke7 {[%emt 0:00:00]} 58. d5 {[%emt 0:00:00]} f4 {[%emt 0:00:00]} 59. b6 {[%emt 0:00:00] normal} Nb7 {[%emt 0:00:00] normal} 1/2-1/2

[Event "GER-ch Youth U12w 2019"]
[Site "Willingen"]
[Date "2019.06.14"]
[Round "8.7"]
[White "Prinzen, Siri Marleen"]
[Black "Voigt, Anastasia"]
[Result "1-0"]
[ECO "C54"]
[WhiteElo "1505"]
[BlackElo "1447"]
[Annotator "NA"]
[PlyCount "58"]
[EventDate "2019.06.07"]
[EventType "swiss"]
[EventRounds "9"]
[EventCountry "GER"]
[SourceTitle "playchess.com"]
[Source "ChessBase"]
[SourceQuality "1"]
[TimeControl "40/4500+30:900+30"]

1. e4 {[%emt 0:00:00]} e5 {[%emt 0:00:00]} 2. Nf3 {[%emt 0:00:00]} Nc6 {[%emt 0:00:00]} 3. Bc4 {[%emt 0:00:00]} Bc5 {[%emt 0:00:00]} 4. c3 {[%emt 0:00:00]} Nf6 {[%emt 0:00:00]} 5. d3 {[%emt 0:00:00]} d6 {[%emt 0:00:00]} 6. h3 {[%emt 0:00:00]} a6 {[%emt 0:00:00]} 7. Bb3 {[%emt 0:00:00]} Ba7 {[%emt 0:00:00]} 8. Nbd2 {[%emt 0:00:00]} Be6 {[%emt 0:00:00]} 9. O-O {[%emt 0:00:00]} h6 {[%emt 0:00:00]} 10. Re1 {[%emt 0:00:00]} Qd7 {[%emt 0:00:00]} 11. Bxe6 {[%emt 0:00:00]} fxe6 {[%emt 0:00:00]} 12. Nf1 {[%emt 0:00:00]} O-O-O {[%emt 0:00:00]} 13. Be3 {[%emt 0:03:22]} g5 {[%emt 0:00:00]} 14. Bxa7 {[%emt 0:03:58]} Nxa7 {[%emt 0:00:00]} 15. d4 {[%emt 0:02:25]} Qg7 {[%emt 0:00:00]} 16. Qb3 {[%emt 0:04:51]} Rde8 {[%emt 0:00:00]} 17. dxe5 {[%emt 0:02:23]} dxe5 {[%emt 0:00:52]} 18. Nxe5 {[%emt 0:03:25]} Nh5 {[%emt 0:00:28]} 19. Nd3 {[%emt 0:04:00]} b6 {[%emt 0:01:27]} 20. Qc4 {[%emt 0:04:17]} Kb7 {[%emt 0:01:13]} 21. e5 {[%emt 0:03:29]} Rhg8 {[%emt 0:02:55]} 22. Qe4+ {[%emt 0:02:06]} Kb8 {[%emt 0:00:38]} 23. Nb4 {[%emt 0:01:52]} c6 {[%emt 0:05:20]} 24. Nxa6+ {[%emt 0:01:53]} Kb7 {[%emt 0:00:11]} 25. Nb4 {[%emt 0:00:08]} Nf4 {[%emt 0:00:52]} 26. Nd3 {[%emt 0:01:35]} Nxh3+ {[%emt 0:40:46]} 27. gxh3 {[%emt 0:05:32]} h5 {[%emt 0:02:48]} 28. Ng3 {[%emt 0:02:16]} Qf7 {[%emt 0:00:55] normal} 29. Re3 {[%emt 0:04:06] normal} Rg7 {[%emt 0:02:31] normal} 1-0